fUST/lending_fUST_20250606
["ID","MTS","AMOUNT","RATE_DAILY","PERIOD"]
[364598120,1749156642470,-151.0,0.00024296,7]
[364598122,1749156642479,-151.0,0.00024296,7]
[364598124,1749156642488,-239.63819,0.00024296,7]
[364598126,1749156642498,-151.0,0.00024296,7]
[364598128,1749156642507,-151.0,0.00024296,7]
[364598130,1749156642516,-151.0,0.00024296,7]
[364598132,1749156642525,-196.244923,0.00024296,7]
[364598134,1749156642535,-151.0,0.00024296,7]
[364598136,1749156642544,-151.0,0.00024296,7]
[364598140,1749156642553,-151.0,0.00024296,7]
[364598142,1749156642563,-151.0,0.00024296,7]
[364598145,1749156642571,-151.0,0.00024296,7]
[364598148,1749156642581,-151.0,0.00024296,7]
[364598151,1749156642591,-151.0,0.00024296,7]
[364598152,1749156642600,-151.0,0.00024296,7]
[364598155,1749156642609,-151.0,0.00024296,7]
[364598157,1749156642618,-151.0,0.00024296,7]
[364598158,1749156642627,-151.0,0.00024296,7]
[364598161,1749156642638,-151.0,0.00024296,7]
[364598162,1749156642647,-151.0,0.00024296,7]
[364598164,1749156642655,-151.0,0.00024296,7]
[364598166,1749156642665,-193.356936,0.00024296,7]
[364598168,1749156642676,-151.0,0.00024296,7]
[364598170,1749156642685,-151.0,0.00024296,7]
[364598172,1749156642694,-184840.26,0.000243,7]
[364598174,1749156642703,-292.8,0.000243,2]
[364598176,1749156642713,-1134.54,0.000243,7]
[364598178,1749156642722,-2000.0,0.000243,2]
[364598180,1749156642731,-4000.0,0.00024301,3]
[364598182,1749156642741,-158.154545,0.00024301,7]
[364598184,1749156642750,-158.154545,0.00024301,7]
[364598186,1749156642759,-229.48950782,0.00024301,3]
[364598188,1749156642768,-1000.0,0.00024302,2]
[364598190,1749156642779,-1000.0,0.00024302,4]
[364598192,1749156642788,-1000.0,0.00024302,6]
[364598194,1749156642801,-1000.0,0.00024302,8]
[364598196,1749156642810,-1000.0,0.00024302,10]
[364598198,1749156642820,-315.01552021,0.00024302,30]
[364598200,1749156642830,-12675.11581177,0.00024302,30]
[364598202,1749156642839,-151.0,0.00024302,7]
[364598204,1749156642848,-211.269124,0.00024302,7]
[364598206,1749156642857,-151.0,0.00024302,7]
[364598208,1749156642866,-151.0,0.00024302,7]
[364598210,1749156642876,-260.344866,0.00024302,7]
[364598212,1749156642885,-151.0,0.00024302,7]
[364598214,1749156642894,-510.49767918,0.00024303,2]
[364598216,1749156642903,-404.78485811,0.00024303,2]
[364598218,1749156642912,-500.0,0.00024303,2]
[364598220,1749156642923,-598.84238107,0.00024303,2]
[364598222,1749156642933,-200.0,0.00024304,2]
[364598224,1749156642942,-151.0,0.00024304,7]
[364598226,1749156642951,-151.0,0.00024304,7]
[364598228,1749156642961,-151.0,0.00024304,7]
[364598230,1749156642971,-151.0,0.00024304,7]
[364598232,1749156642980,-151.0,0.00024304,7]
[364598234,1749156642989,-151.0,0.00024304,7]
[364598236,1749156642998,-293.934596,0.00024304,7]
[364598238,1749156643007,-151.0,0.00024304,7]
[364598240,1749156643016,-151.0,0.00024304,7]
[364598242,1749156643025,-151.0,0.00024304,7]
[364598244,1749156643035,-228.338956,0.00024304,7]
[364598246,1749156643044,-151.0,0.00024304,7]
[364598248,1749156643053,-151.0,0.00024304,7]
[364598250,1749156643062,-151.0,0.00024304,7]
[364598252,1749156643072,-206.485733,0.00024304,7]
[364598254,1749156643081,-151.0,0.00024304,7]
[364598256,1749156643090,-259.332202,0.00024304,7]
[364598258,1749156643099,-437.351281,0.00024304,7]
[364598260,1749156643108,-151.0,0.00024304,7]
[364598262,1749156643118,-437.351281,0.00024304,7]
[364598264,1749156643127,-151.0,0.00024304,7]
[364598266,1749156643136,-437.351281,0.00024304,7]
[364598268,1749156643145,-437.351281,0.00024304,7]
[364598270,1749156643155,-437.351281,0.00024304,7]
[364598272,1749156643164,-437.351281,0.00024304,7]
[364598274,1749156643177,-437.351281,0.00024304,7]
[364598276,1749156643186,-437.351281,0.00024304,7]
[364598278,1749156643195,-437.351281,0.00024304,7]
[364598280,1749156643205,-437.351281,0.00024304,7]
[364598282,1749156643215,-437.351281,0.00024304,7]
[364598284,1749156643225,-437.351281,0.00024304,7]
[364598286,1749156643235,-437.351281,0.00024304,7]
[364598288,1749156643245,-437.351281,0.00024304,7]
[364598290,1749156643254,-437.351281,0.00024304,7]
[364598292,1749156643263,-437.351281,0.00024304,7]
[364598294,1749156643273,-437.351281,0.00024304,7]
[364598296,1749156643283,-437.351281,0.00024304,7]
[364598298,1749156643292,-437.351281,0.00024304,7]
[364598300,1749156643302,-437.351285,0.00024304,7]
[364598302,1749156643311,-151.0,0.00024304,7]
[364598304,1749156643321,-202.205927,0.00024304,7]
[364598306,1749156643331,-151.0,0.00024304,7]
[364598308,1749156643340,-151.0,0.00024304,7]
[364598310,1749156643349,-151.0,0.00024304,7]
[364598312,1749156643358,-151.0,0.00024304,7]
[364598314,1749156643368,-151.0,0.00024304,7]
[364598316,1749156643377,-171.25427,0.00024304,7]
[364598318,1749156643386,-230.0928,0.00024304,7]
[364598319,1749156643397,-230.0928,0.00024304,7]
[364598321,1749156643407,-230.0928,0.00024304,7]
[364598323,1749156643416,-230.0928,0.00024304,7]
[364598325,1749156643429,-230.0928,0.00024304,7]
[364598327,1749156643439,-230.0928,0.00024304,7]
[364598329,1749156643450,-230.0928,0.00024304,7]
[364598331,1749156643460,-230.0928,0.00024304,7]
[364598333,1749156643469,-230.0928,0.00024304,7]
[364598335,1749156643479,-230.0928,0.00024304,7]
[364598337,1749156643488,-230.0928,0.00024304,7]
[364598339,1749156643498,-230.0928,0.00024304,7]
[364598341,1749156643507,-230.0928,0.00024304,7]
[364598343,1749156643517,-230.0928,0.00024304,7]
[364598345,1749156643528,-230.0928,0.00024304,7]
[364598348,1749156643538,-230.0928,0.00024304,7]
[364598349,1749156643548,-230.0928,0.00024304,7]
[364598352,1749156643559,-230.0928,0.00024304,7]
[364598353,1749156643568,-230.0928,0.00024304,7]
[364598355,1749156643577,-230.092808,0.00024304,7]
[364598357,1749156643587,-559894.82432293,0.00024304,20]
[364598359,1749156643596,-1231452.29689572,0.00024304,20]
[364598362,1749156643613,-114726.25377975,0.00024304,20]
[364598364,1749156643622,-1707.55896996,0.00024304,2]
[364598366,1749156643632,-237.84299938,0.00024304,10]
[364598368,1749156643642,-1083.53749318,0.00024304,10]
[364598370,1749156643651,-200.0,0.00024304,10]
[364598372,1749156643661,-378715.16417648,0.00024304,20]
[364598374,1749156643671,-253.49861873,0.00024304,2]
[364598376,1749156643684,-25000.0,0.00024304,15]
[364598378,1749156643694,-227201.74864139,0.00024304,20]
[364598380,1749156643704,-459790.71642633,0.00024304,20]
[364598382,1749156643715,-2796291.75876134,0.00024304,20]
[364598384,1749156643727,-4332.31170743,0.00024304,20]
[364598386,1749156643739,-17520.63281143,0.00024304,20]
[364598389,1749156643751,-26323.25797675,0.00024304,20]
[364598391,1749156643762,-4892.5276201,0.00024304,20]
[364598394,1749156643774,-44128.99267161,0.00024304,20]
[364598400,1749156643790,-529.33,0.00024286,10]
[364598403,1749156643803,-9571.67,0.00024304,20]
[364598596,1749156645622,-440.0,0.00020579,2]
[364598599,1749156645633,-12675.11581177,0.00020579,2]
[364598601,1749156645643,-440.0,0.0002058,2]
[364598603,1749156645653,-440.0,0.0002058,2]
[364598605,1749156645664,-430.0,0.00020581,2]
[364598608,1749156645678,-430.0,0.00020854,2]
[364598610,1749156645688,-500.0,0.00024303,2]
[364598613,1749156645698,-56.13475961,0.00024303,2]
[364598617,1749156645712,-468.39561644,0.00024303,2]
[364598620,1749156645722,-500.0,0.00024303,2]
[364598623,1749156645732,-26062.36338951,0.00024304,20]
[364598626,1749156645744,-40352.0,0.00024304,20]
[364598902,1749156648287,-325.8193,0.0002058,2]
[364598905,1749156648301,-114.1807,0.0002058,2]
[364598907,1749156648311,-430.0,0.00020581,2]
[364598909,1749156648321,-300.0,0.00024303,2]
[364598911,1749156648331,-2205.78517285,0.00024304,20]
[364598922,1749156648449,-38482.50287689,0.00024304,20]
[364599203,1749156651401,-905.95042086,0.00024304,20]
[364599204,1749156651414,-5048.5,0.00024304,20]
[364601485,1749156690698,187.64586879,0.00019963,2]
[364601512,1749156910973,-208.97987017,0.00020479,2]
[364601516,1749156954144,150.0,0.00016857,2]
[364601517,1749156954635,150.0,0.0001766,2]
[364601519,1749156955112,150.0,0.00018463,2]
[364601520,1749156955593,150.0,0.00019265,2]
[364601525,1749157226592,163.484949,0.00013699,2]
[364601526,1749157229662,150.0,0.00016767,2]
[364601527,1749157230199,150.0,0.00017565,2]
[364601533,1749157352170,200.0,0.00023301,120]
[364601536,1749157412063,200.0,0.00024667,120]
[364601537,1749157471271,50789.14330085,0.00019,2]
[364601538,1749157471307,23210.85669915,0.00019,2]
[364601539,1749157471373,200.0,0.00023653,120]
[364601540,1749157472015,-163.484949,0.00020187,2]
[364601542,1749157534551,172.838546,0.00020317,120]
[364601543,1749157537118,-172.838546,0.00020317,2]
[364601544,1749157537139,-46.72778057,0.00020479,2]
[364601545,1749157537163,-160.0,0.00020577,2]
[364601546,1749157537185,-300.0,0.00020578,2]
[364601547,1749157537208,-299.0,0.00020578,2]
[364601548,1749157537229,-757.0,0.00020578,2]
[364601549,1749157537252,-160.0,0.00020579,2]
[364601550,1749157537273,-229.48950782,0.00020579,2]
[364601551,1749157537294,-380.0,0.00020579,2]
[364601552,1749157537315,-537.2966483,0.00020579,2]
[364601553,1749157537337,-440.0,0.00020579,2]
[364601554,1749157537364,-468.13,0.00020579,2]
[364601555,1749157537386,-283.28858271,0.00020579,2]
[364601556,1749157537544,-390.0,0.0002058,2]
[364601557,1749157537566,-500.0,0.0002058,2]
[364601558,1749157537587,-500.0,0.0002058,2]
[364601559,1749157537608,-430.0,0.0002058,2]
[364601560,1749157537635,-430.0,0.0002058,2]
[364601561,1749157537658,-430.0,0.0002058,2]
[364601562,1749157537679,-156.79959206,0.0002058,2]
[364601563,1749157537700,-440.0,0.0002058,2]
[364601564,1749157537721,-430.0,0.0002058,2]
[364601565,1749157537742,-483.66223302,0.0002058,2]
[364601566,1749157537763,-440.0,0.0002058,2]
[364601567,1749157537784,-430.0,0.0002058,2]
[364601568,1749157537806,-316.50405232,0.0002058,2]
[364601570,1749157591378,200.0,0.00024207,120]
[364601572,1749157633100,-208.97987017,0.0002048,2]
[364601573,1749157633123,-157.54435566,0.00020579,2]
[364601574,1749157633145,-150.7747416,0.0002058,2]
[364601575,1749157633165,-440.0,0.0002058,2]
[364601576,1749157633187,-160.0,0.00020853,2]
[364601577,1749157633214,-151.0,0.00021561,2]
[364601578,1749157633235,-207.4,0.00021561,2]
[364601579,1749157633256,-300.0,0.00021573,2]
[364601580,1749157633278,-6035.49322451,0.00021574,2]
[364601582,1749157651733,200.0,0.00023992,120]
[364601583,1749157758111,-229.48950782,0.00021573,2]
[364601584,1749157758132,-14.42117812,0.00021573,2]
[364601585,1749157769213,-197.24178088,0.00020978,2]
[364601586,1749157771838,200.0,0.00023124,120]
[364601676,1749157832622,-2398.306848,0.00020745,2]
[364601742,1749157838377,-115.1424987,0.00020745,2]
[364601743,1749157838387,-626.27731112,0.00020978,2]
[364601744,1749157838397,-315.01552021,0.00021573,2]
[364601745,1749157838407,-160.0,0.00021573,2]
[364601746,1749157838417,-164.641114,0.00021722,2]
[364601747,1749157838426,-2.12848373,0.00021784,2]
[364601748,1749157838438,-205.27151627,0.00021784,2]
[364601749,1749157838448,-300.0,0.00021795,2]
[364601750,1749157838457,-214.65336325,0.00021796,2]
[364601751,1749157838467,-440.0,0.00021796,2]
[364601752,1749157838476,-440.0,0.00021796,2]
[364601753,1749157838486,-440.0,0.00021796,2]
[364601755,1749157838495,-440.0,0.00021796,2]
[364601756,1749157838505,-440.0,0.00021796,2]
[364601757,1749157838514,-430.0,0.00021796,2]
[364601758,1749157838526,-440.0,0.00021796,2]
[364601759,1749157838535,-440.0,0.00021796,2]
[364601760,1749157838546,-6260.07512048,0.00021797,2]
[364601761,1749157838558,-1101.379751,0.00021797,2]
[364601762,1749157838569,-17538.54512852,0.00021797,2]
[364601763,1749157838579,-247.92707495,0.0002207,2]
[364601764,1749157838588,-440.0,0.0002207,2]
[364601765,1749157838600,-440.0,0.0002207,2]
[364601766,1749157838629,-440.0,0.0002207,2]
[364601767,1749157838642,-440.0,0.0002207,2]
[364601768,1749157838652,-167.84415729,0.00022122,2]
[364601769,1749157838663,-1916.97201324,0.00022222,2]
[364601770,1749157838673,-440.0,0.00022222,2]
[364601771,1749157838683,-392.77,0.00022222,2]
[364601772,1749157838694,-589.62,0.00022222,2]
[364601773,1749157838704,-440.0,0.00022222,2]
[364601774,1749157838714,-440.0,0.00022222,2]
[364601775,1749157838724,-440.0,0.00022222,2]
[364601776,1749157838734,-396.57464329,0.00022222,2]
[364601777,1749157838745,-440.0,0.00022344,2]
[364601778,1749157838755,-440.0,0.00022344,2]
[364601779,1749157838765,-346.24,0.00022344,2]
[364601780,1749157838774,-440.0,0.00022496,2]
[364601781,1749157838784,-241.31285619,0.00022496,2]
[364601782,1749157838794,-440.0,0.00022618,2]
[364601783,1749157838805,-238.0873,0.0002277,2]
[364601784,1749157838814,-331.91174254,0.00022892,2]
[364601785,1749157838824,-199.89997778,0.000229,8]
[364601786,1749157838833,-199.89997767,0.00023054,8]
[364601787,1749157838843,-215.0738,0.00023153,2]
[364601788,1749157838853,-199.89997767,0.00023208,8]
[364601789,1749157838864,-336.123583,0.00023284,2]
[364601790,1749157838874,-440.0,0.00023284,2]
[364601791,1749157838884,-199.89997767,0.00023362,9]
[364601792,1749157838894,-287.0,0.00023453,2]
[364601793,1749157838904,-199.89997767,0.00023515,9]
[364601794,1749157838914,-440.0,0.00023558,2]
[364601795,1749157838923,-199.89997767,0.00023669,9]
[364601796,1749157838933,-542.2,0.00023799,2]
[364601797,1749157838943,-392.13753428,0.00023799,2]
[364601798,1749157838954,-1216.46,0.000238,2]
[364601799,1749157838964,-191.541,0.000238,5]
[364601800,1749157838974,-468.554073,0.00023817,3]
[364601801,1749157838983,-199.89997767,0.00023823,10]
[364601802,1749157838993,-440.0,0.00023832,2]
[364601803,1749157839003,-405.0,0.00023861,2]
[364601804,1749157839012,-199.89997767,0.00023977,10]
[364601805,1749157839022,-1674.25272341,0.00024,7]
[364601806,1749157839032,-440.0,0.00024106,2]
[364601807,1749157839042,-200.0,0.00024113,2]
[364601808,1749157839053,-199.89997767,0.00024131,10]
[364601809,1749157839063,-150.0,0.00024132,2]
[364601810,1749157839245,-2000.0,0.000242,2]
[364601811,1749157839256,-2000.0,0.000242,2]
[364601812,1749157839266,-1194.13958798,0.00024207,2]
[364601813,1749157839276,-199.89997767,0.00024285,10]
[364601814,1749157839285,-441.11,0.0002429,10]
[364601815,1749157839295,-160.0,0.00024299,2]
[364601816,1749157839304,-147872.21,0.000243,7]
[364601817,1749157839314,-794.18,0.000243,7]
[364601818,1749157839323,-292.8,0.000243,2]
[364601819,1749157839333,-500.0,0.00024301,2]
[364601820,1749157839343,-567.17126323,0.00024301,2]
[364601821,1749157839352,-500.0,0.00024301,2]
[364601822,1749157839363,-598.84238107,0.00024301,2]
[364601823,1749157839373,-404.78485811,0.00024301,2]
[364601824,1749157839383,-510.49767918,0.00024301,2]
[364601825,1749157839392,-151.0,0.00024302,7]
[364601826,1749157839402,-151.0,0.00024302,7]
[364601827,1749157839412,-151.0,0.00024302,7]
[364601828,1749157839422,-151.0,0.00024302,7]
[364601829,1749157839432,-151.0,0.00024302,7]
[364601830,1749157839441,-151.0,0.00024302,7]
[364601831,1749157839451,-293.934596,0.00024302,7]
[364601832,1749157839461,-200.0,0.00024302,7]
[364601833,1749157839471,-151.0,0.00024302,7]
[364601834,1749157839481,-151.0,0.00024302,7]
[364601835,1749157839490,-270.943144,0.00024302,7]
[364601836,1749157839500,-151.0,0.00024302,7]
[364601837,1749157839510,-151.0,0.00024302,7]
[364601838,1749157839520,-151.0,0.00024302,7]
[364601839,1749157839530,-151.0,0.00024302,7]
[364601840,1749157839539,-151.0,0.00024302,7]
[364601841,1749157839548,-244.280696,0.00024302,7]
[364601842,1749157839557,-151.0,0.00024302,7]
[364601843,1749157839567,-151.0,0.00024302,7]
[364601844,1749157839576,-151.0,0.00024302,7]
[364601845,1749157839585,-259.332202,0.00024302,7]
[364601846,1749157839595,-151.0,0.00024302,7]
[364601847,1749157839605,-151.0,0.00024302,7]
[364601848,1749157839617,-151.0,0.00024302,7]
[364601849,1749157839627,-151.0,0.00024302,7]
[364601850,1749157839636,-163.279386,0.00024302,7]
[364601851,1749157839646,-151.0,0.00024302,7]
[364601852,1749157839658,-202.205927,0.00024302,7]
[364601853,1749157839669,-151.0,0.00024302,7]
[364601854,1749157839679,-437.351281,0.00024302,7]
[364601855,1749157839690,-151.0,0.00024302,7]
[364601856,1749157839700,-437.351281,0.00024302,7]
[364601857,1749157839710,-151.0,0.00024302,7]
[364601858,1749157839719,-437.351281,0.00024302,7]
[364601859,1749157839729,-151.0,0.00024302,7]
[364601860,1749157839739,-151.0,0.00024302,7]
[364601861,1749157839749,-437.351281,0.00024302,7]
[364601862,1749157839759,-171.25427,0.00024302,7]
[364601863,1749157839769,-437.351281,0.00024302,7]
[364601864,1749157839778,-437.351281,0.00024302,7]
[364601866,1749157839787,-437.351281,0.00024302,7]
[364601867,1749157839797,-437.351281,0.00024302,7]
[364601868,1749157839807,-437.351281,0.00024302,7]
[364601869,1749157839816,-437.351281,0.00024302,7]
[364601870,1749157839825,-437.351281,0.00024302,7]
[364601871,1749157839834,-437.351281,0.00024302,7]
[364601872,1749157839844,-437.351281,0.00024302,7]
[364601873,1749157839853,-437.351281,0.00024302,7]
[364601874,1749157839863,-437.351281,0.00024302,7]
[364601875,1749157839873,-437.351281,0.00024302,7]
[364601876,1749157839882,-437.351281,0.00024302,7]
[364601877,1749157839892,-437.351281,0.00024302,7]
[364601878,1749157839901,-437.351281,0.00024302,7]
[364601879,1749157839911,-437.351285,0.00024302,7]
[364601880,1749157839920,-151.0,0.00024302,7]
[364601881,1749157839929,-151.0,0.00024302,7]
[364601882,1749157839939,-151.0,0.00024302,7]
[364601883,1749157839948,-157.834877,0.00024302,7]
[364601884,1749157839957,-151.0,0.00024302,7]
[364601885,1749157839966,-151.0,0.00024302,7]
[364601886,1749157839975,-151.0,0.00024302,7]
[364601887,1749157839984,-151.0,0.00024302,7]
[364601888,1749157839993,-228.338956,0.00024302,7]
[364601889,1749157840002,-151.0,0.00024302,7]
[364601891,1749157840012,-151.0,0.00024302,7]
[364601893,1749157840021,-151.0,0.00024302,7]
[364601894,1749157840031,-151.0,0.00024302,7]
[364601895,1749157840039,-151.0,0.00024302,7]
[364601896,1749157840048,-151.0,0.00024302,7]
[364601897,1749157840057,-297.626669,0.00024302,7]
[364601898,1749157840066,-151.0,0.00024302,7]
[364601899,1749157840075,-211.269124,0.00024302,7]
[364601900,1749157840085,-230.0928,0.00024302,7]
[364601901,1749157840094,-230.0928,0.00024302,7]
[364601902,1749157840103,-230.0928,0.00024302,7]
[364601903,1749157840115,-230.0928,0.00024302,7]
[364601904,1749157840124,-230.0928,0.00024302,7]
[364601905,1749157840134,-230.0928,0.00024302,7]
[364601906,1749157840143,-230.0928,0.00024302,7]
[364601907,1749157840153,-230.0928,0.00024302,7]
[364601908,1749157840163,-230.0928,0.00024302,7]
[364601909,1749157840177,-230.0928,0.00024302,7]
[364601910,1749157840187,-230.0928,0.00024302,7]
[364601911,1749157840197,-230.0928,0.00024302,7]
[364601912,1749157840207,-230.0928,0.00024302,7]
[364601913,1749157840218,-230.0928,0.00024302,7]
[364601914,1749157840228,-230.0928,0.00024302,7]
[364601916,1749157840238,-230.0928,0.00024302,7]
[364601917,1749157840248,-230.0928,0.00024302,7]
[364601918,1749157840259,-230.0928,0.00024302,7]
[364601919,1749157840268,-230.0928,0.00024302,7]
[364601920,1749157840278,-230.092808,0.00024302,7]
[364601921,1749157840287,-151.0,0.00024302,7]
[364601923,1749157840297,-12675.11581177,0.00024302,30]
[364601925,1749157840306,-315.01552021,0.00024302,30]
[364601926,1749157840316,-1000.0,0.00024303,2]
[364601927,1749157840326,-1000.0,0.00024303,4]
[364601928,1749157840336,-1000.0,0.00024303,6]
[364601929,1749157840345,-1000.0,0.00024303,8]
[364601931,1749157840355,-1000.0,0.00024303,10]
[364601932,1749157840366,-151.0,0.00024304,7]
[364601933,1749157840375,-151.0,0.00024304,7]
[364601935,1749157840385,-152.866879,0.00024304,7]
[364601937,1749157840394,-151.0,0.00024304,7]
[364601938,1749157840403,-151.0,0.00024304,7]
[364601939,1749157840413,-206.485733,0.00024304,7]
[364601940,1749157840422,-151.0,0.00024304,7]
[364601942,1749157840432,-151.0,0.00024304,7]
[364601944,1749157840441,-151.0,0.00024304,7]
[364601946,1749157840451,-151.0,0.00024304,7]
[364601948,1749157840460,-158.154545,0.00024304,7]
[364601950,1749157840469,-158.154545,0.00024304,7]
[364601952,1749157840479,-162.768674,0.00024304,7]
[364601954,1749157840488,-176.674489,0.00024304,7]
[364601956,1749157840498,-151.0,0.00024304,7]
[364601958,1749157840507,-255.18757,0.00024304,7]
[364601960,1749157840517,-1604785.84189085,0.00024304,20]
[364601972,1749157840625,-4005208.07986654,0.00024304,20]
[364601975,1749157840638,-1420.0,0.00024304,20]
[364601977,1749157840655,-380.22433712,0.00024304,20]
[364601979,1749157840666,-1195.5357528,0.00024304,20]
[364601981,1749157840679,-1958.7512448,0.00024304,20]
[364601984,1749157840691,-150212.13772907,0.00024304,20]
[364601986,1749157840703,-50250.0,0.00024304,20]
[364602410,1749157845032,-367.59,0.0002429,10]
[364602412,1749157845042,-1581.24274287,0.00024304,20]
[364602414,1749157845055,-3563.17829135,0.00024304,20]
[364602417,1749157845066,-732.11396445,0.00024304,20]
[364602419,1749157845078,-3388.80677764,0.00024304,20]
[364602421,1749157845090,-27489.34251037,0.00024304,20]
[364602424,1749157845101,-110259.29218235,0.00024304,20]
[364602636,1749157847204,-1420.0,0.00024304,20]
[364602638,1749157847216,-30909.34157553,0.00024304,20]
[364605940,1749157891367,200.0,0.00023517,120]
[364605943,1749157951657,200.0,0.00023727,120]
[364605947,1749158011690,200.0,0.00023485,120]
[364605948,1749158071354,200.0,0.00023951,120]
[364605950,1749158130945,200.0,0.00023105,120]
[364605952,1749158244868,169.090823,0.00013699,2]
[364605953,1749158250956,200.0,0.00023947,120]
[364605956,1749158261429,293.86053057,0.00024658,120]
[364605962,1749158312179,200.0,0.00023312,120]
[364605965,1749158372015,200.0,0.00024075,120]
[364605970,1749158410945,-169.090823,0.00020187,2]
[364605979,1749158610962,200.0,0.00023413,120]
[364605981,1749158671028,200.0,0.00024262,120]
[364605987,1749158730987,200.0,0.00023104,120]
[364605990,1749158741121,-212.94059491,0.00021569,2]
[364605991,1749158741142,-229.48950782,0.00021569,2]
[364605992,1749158741164,-153.233,0.00021571,2]
[364605993,1749158741184,-300.0,0.0002178,2]
[364605994,1749158741203,-65.41059155,0.0002178,2]
[364606000,1749158828124,-411.759546,0.00020786,2]
[364606001,1749158828148,-234.58940845,0.0002178,2]
[364606002,1749158828181,-1200.0,0.0002178,2]
[364606003,1749158828207,-300.0,0.0002178,2]
[364606004,1749158828233,-500.0,0.0002178,2]
[364606005,1749158828258,-483.5,0.0002178,2]
[364606006,1749158828284,-207.4,0.0002178,2]
[364606007,1749158828310,-160.0,0.00021781,2]
[364606008,1749158828340,-440.0,0.00021781,2]
[364606009,1749158828369,-440.0,0.00021781,2]
[364606010,1749158828395,-7030.35527614,0.00021781,2]
[364606012,1749158836088,-4356.00818438,0.00021781,2]
[364606013,1749158836129,-461.43912134,0.00021781,2]
[364606014,1749158850982,200.0,0.00023754,120]
[364606015,1749158854113,-781.1192192,0.00021781,2]
[364606017,1749158873217,2757.73866098,0.00024308,120]
[364606025,1749158906318,157.51140368,0.000187,2]
[364606027,1749158911000,200.0,0.00023634,120]
[364606035,1749158925345,1970.86842302,0.00024308,120]
[364606036,1749158925591,3425.34215889,0.0002,120]
[364606039,1749158927828,806.41575778,0.00014,30]
[364606046,1749158971000,200.0,0.00023675,120]
[364606050,1749159013154,17348.615437,0.00024657,120]
[364606051,1749159031010,200.0,0.00024122,120]
[364606066,1749159037835,-207.4,0.00021777,2]
[364606068,1749159037847,-228.0,0.0002178,2]
[364606070,1749159037857,-229.48950782,0.00021781,2]
[364606072,1749159037867,-212.94059491,0.00021781,2]
[364606074,1749159037876,-440.0,0.00021781,2]
[364606076,1749159037886,-440.0,0.00021781,2]
[364606078,1749159037896,-3724.82679244,0.00021781,2]
[364606089,1749159037986,-900.1571553,0.00021781,2]
[364606103,1749159038063,-1062.02157903,0.00021781,2]
[364606165,1749159038622,-3680.17684167,0.00021781,2]
[364606167,1749159038633,-12675.11581177,0.0002179,2]
[364606169,1749159038642,-160.0,0.0002179,2]
[364606171,1749159038651,-842.5625,0.0002179,2]
[364606173,1749159038661,-423.7637613,0.0002179,2]
[364606175,1749159038670,-440.0,0.00021796,2]
[364606177,1749159038679,-444.13,0.00021796,2]
[364606179,1749159038689,-440.0,0.00022055,2]
[364606181,1749159038698,-491.127935,0.00022055,2]
[364606183,1749159038707,-172.1159415,0.00022157,2]
[364606185,1749159038716,-440.0,0.00022221,2]
[364606187,1749159038726,-333.25588157,0.00022221,2]
[364606189,1749159038735,-440.0,0.00022221,2]
[364606191,1749159038744,-440.0,0.00022221,2]
[364606193,1749159038754,-871.62703409,0.00022392,2]
[364606195,1749159038763,-440.0,0.00022495,2]
[364606197,1749159038773,-60446.78387589,0.000225,60]
[364606199,1749159038782,-440.0,0.00022769,2]